Cogmind - Beta 11 X6 @@@ ROGUE MODE // 2021.08.11 @ 08:44:19 // AFD2020/Player2 Player: P2 Tele Maniac Result: Core destroyed Performance ------------- Evolutions (8) 4000 Regions Visited (27) 5400 Robots Destroyed (187) 935 Value Destroyed (9044) 9044 Prototype IDs (47) 940 Alien Tech Used (7) 1400 Bonus (17617) 17617 TOTAL SCORE: 39336 Bonus ------- High Alert Combat Kills 1218 Follower Combat Kills 11145 Entered Garrisons 1000 Used RIF Installer 2000 Network Hubs Disabled 400 Met Zhirov 300 Met R17 at Cetus 500 Used Core Reset Matrix 3000 Friendly Fire -1946 Cogmind --------- Core Integrity 0/1450 Matter 294/300 Energy 26/100 System Corruption 0% Temperature Cool (0) Movement Core (150) Ox2 Location -2/Research Parts ------- > --- POWER (1) -------- (None) > --- PROPULSION (2) --- (None) > --- UTILITY (17) ----- Advanced Weight Redist. System Advanced Visual Processing Unit Transport Network Coupler 0b10 Decoder Chip [Skirmisher] Tactical Coordination Suite Advanced Melee Analysis Suite Advanced Transmission Jammer Advanced Focal Shield Improved Hacking Suite Improved Hacking Suite Improved Hacking Suite Advanced Hacking Suite Advanced Hacking Suite > --- WEAPON (3) ------- (None) > --- INVENTORY (5) ---- Tactical Coordination Suite Peak State ------------ > --- POWER ------------ Backup Power VII > --- PROPULSION ------- Linear Gravjet Linear Gravjet > --- UTILITY ---------- Medium Storage Unit Advanced Weight Redist. System Transport Network Coupler 0b10 Decoder Chip [Skirmisher] Advanced Launcher Guidance Computer Advanced Transmission Jammer Experimental Propulsion Shielding Improved Hacking Suite Improved Hacking Suite Improved Hacking Suite Advanced Hacking Suite Advanced Hacking Suite Relay Coupler [Grunt] Relay Coupler [Sentry] Relay Coupler [Hunter] Matter Drive > --- WEAPON ----------- Advanced Datajack Sigix Broadsword > --- INVENTORY -------- Transdimensional Reconstructor High-powered Transdimensional Reconstructor High-powered Transdimensional Reconstructor High-powered Transdimensional Reconstructor High-powered Transdimensional Reconstructor Core Reset Matrix [Rating: 160] Favorites ----------- Power Backup Power III Engine Backup Power III Power Core Micro Fission Core Reactor Light Antimatter Reactor Propulsion Improved Aluminum Leg Treads Centrium Heavy Treads Leg Improved Aluminum Leg Wheel Armored Wheel Hover Unit Cooled Gravmag System Flight Unit Improved VTOL Module Utility Hacking Suite Device Advanced Weight Redist. System Storage Medium Storage Unit Processor 0b10 Decoder Chip [Skirmisher] Hackware Hacking Suite Protection Improved Utility Shielding Artifact Matter Drive Weapon Advanced Datajack Energy Gun Improved Heavy Laser Energy Cannon Compact HERF Cannon Ballistic Gun Light Assault Rifle Ballistic Cannon Mini Assault Cannon Launcher Mini Grenade Launcher Special Weapon Remote Datajack Slashing Weapon Sigix Broadsword Special Melee Weapon Advanced Datajack Build | -11 -10 -10 -9 -9 -9 -8 -7 -7 -6 -6 -6 -6 -5 -5 -5 -5 -5 -4 -4 -4 -4 -3 -3 -3 -3 -3 -2 ------- Run | Scr Mat Min Mat Sto Gar Mat Fac Gar Fac Gar Fac Gar Fac Ext Cet Arc Hub Fac Upp Upp Zhi Pro Res Gar Res Qua Res Slots Evolved 16 | . . . 2 . . 2 2 . 2 . . . 2 . . . . 2 . . . . 2 . . . 2 Power . | . . . . . . . . . . . . . . . . . . . . . . . . . . . . Propulsion . | . . . . . . . . . . . . . . . . . . . . . . . . . . . . Utility 15 | . . . 2 . . 2 2 . 2 . . . 2 . . . . 2 . . . . 2 . . . 1 Weapon 1 | . . . . . . . . . . . . . . . . . . . . . . . . . . . 1 Parts Attached 372 | 8 19 . 5 17 2 37 15 27 4 18 4 7 15 6 23 16 9 5 9 12 9 9 7 11 36 30 12 Power 25 | 1 1 . . 1 . 2 1 3 . 2 . 1 3 . 6 . . . . . 2 . . . 2 . . Engine 10 | 1 1 . . 1 . 2 1 1 . 2 . . . . . . . . . . 1 . . . . . . Core 11 | . . . . . . . . 2 . . . 1 3 . 5 . . . . . . . . . . . . Reactor 4 | . . . . . . . . . . . . . . . 1 . . . . . 1 . . . 2 . . Propulsion 54 | 2 6 . . 1 . 4 1 11 . 4 . . 5 . 3 . 3 2 . . 2 . . . 4 6 . Treads 1 | . . . . . . . . . . . . . . . 1 . . . . . . . . . . . . Leg 16 | 2 3 . . 1 . 4 1 5 . . . . . . . . . . . . . . . . . . . Wheel 6 | . . . . . . . . 4 . 2 . . . . . . . . . . . . . . . . . Hover 13 | . . . . . . . . . . . . . 3 . 2 . 3 . . . 2 . . . 1 2 . Flight 18 | . 3 . . . . . . 2 . 2 . . 2 . . . . 2 . . . . . . 3 4 . Utility 175 | 2 9 . 4 8 2 19 9 3 4 3 1 5 6 5 6 9 4 2 6 2 4 9 7 7 16 13 10 Device 73 | 1 2 . 1 4 1 10 . 1 1 1 . . 1 1 3 1 1 2 2 2 2 9 5 1 7 8 6 Storage 12 | 1 4 . . . . 1 1 . . . . . . . . . . . . . . . 2 . 2 1 . Processor 17 | . 1 . . . 1 1 1 . . . . 1 1 . 1 . . . 3 . . . . . 3 1 3 Hackware 35 | . . . 1 1 . 2 . 2 1 1 1 4 2 1 . 5 2 . 1 . 1 . . 6 3 1 . Protection 37 | . 2 . 2 3 . 5 7 . 2 1 . . 2 3 2 3 1 . . . 1 . . . 1 2 . Artifact 1 | . . . . . . . . . . . . . . . . . . . . . . . . . . . 1 Weapon 118 | 3 3 . 1 7 . 12 4 10 . 9 3 1 1 1 8 7 2 1 3 10 1 . . 4 14 11 2 Energy Gun 21 | . . . 1 5 . 5 . . . 4 . . . 1 4 1 . . . . . . . . . . . Energy Cannon 1 | . . . . . . . . . . . . . . . . . . . . . . . . . 1 . . Ballistic Gun 21 | 2 2 . . 1 . . . . . . . . . . 2 3 . . 1 . . . . 1 6 3 . Ballistic Cannon 9 | . 1 . . . . 1 3 3 . . 1 . . . . . . . . . . . . . . . . Launcher 29 | . . . . 1 . 6 1 6 . 4 . . 1 . 1 . 1 . 1 5 1 . . 1 . . . Special Weapon 6 | 1 . . . . . . . 1 . 1 1 1 . . 1 . . . . . . . . . . . . Impact Weapon . | . . . . . . . . . . . . . . . . . . . . . . . . . . . . Slashing Weapon 3 | . . . . . . . . . . . . . . . . . . . . . . . . . . 2 1 Piercing Weapon . | . . . . . . . . . . . . . . . . . . . . . . . . . . . . Special Melee Weapon 28 | . . . . . . . . . . . 1 . . . . 3 1 1 1 5 . . . 2 7 6 1 Unidentified Prototypes 18 | . . . . 2 . 2 1 . . . . . 2 . 2 . . . . . 4 . . . 2 2 1 Corrupted Parts 1 | . . . . . . . . . . . . . . . 1 . . . . . . . . . . . . System Corruption 1 | . . . . . . . . . . . . . . . 1 . . . . . . . . . . . . Parts Lost 28 | . . . . . 1 . 2 3 1 . . 1 . . 9 . 1 . . . . . . . 2 . 8 Power 5 | . . . . . . . . 2 . . . . . . 1 . . . . . . . . . 1 . 1 Propulsion 5 | . . . . . . . 1 1 . . . . . . 1 . . . . . . . . . . . 2 Utility 14 | . . . . . 1 . 1 . . . . 1 . . 6 . 1 . . . . . . . 1 . 3 Weapon 4 | . . . . . . . . . 1 . . . . . 1 . . . . . . . . . . . 2 Highest Loss Streak 6 | . . . . . 1 . 2 2 1 . . 1 . . 6 . 1 . . . . . . . 2 . 6 Average Slot Usage (%) 94 | . 99 100 93 99 99 97 99 98 93 100 100 97 99 94 80 88 88 78 88 93 94 89 93 88 96 95 82 Engine 4 | . 14 14 11 11 11 8 7 1 6 6 6 2 1 . . . . 4 5 5 4 5 4 . . 2 . Core 1 | . . . . . . . . 5 . . . 3 3 5 4 5 5 . . . . . . . . 1 1 Leg 6 | . 23 28 22 22 22 17 14 10 . . . . . . . . . . . . . . . . . . . Hover 3 | . . . . . . . . . . . . . 1 11 8 . 7 2 . . 8 10 9 9 5 6 7 Flight 2 | . 4 . . . . . . . 13 4 13 13 9 . . . . 7 10 10 1 . . . 3 2 . Device 10 | . 4 . 4 11 14 15 14 7 4 10 8 6 4 7 15 13 6 11 15 15 15 10 13 14 18 6 11 Storage 1 | . 9 14 1 . . 2 7 7 6 5 . . . . . . . . . . . . 8 . . 3 . Processor 7 | . 3 . . . 1 5 6 7 6 6 6 10 14 5 9 6 5 5 11 15 11 10 9 8 8 13 18 Hackware 30 | . . . 9 19 16 18 23 28 39 34 37 35 42 36 20 32 44 42 42 42 41 42 38 47 41 40 28 Protection 8 | . 10 14 22 13 11 10 7 9 2 7 13 12 6 14 6 10 5 . . . 3 5 4 4 4 9 3 Energy Gun 2 | . . . 4 12 11 9 . . 2 5 . . . . 5 1 . . . . . . . . . . . Ballistic Gun 1 | . 17 14 6 . . . . . . . . . . . 2 4 1 . . . . . . . 3 . . Ballistic Cannon 2 | . 8 14 11 7 . . 6 9 6 6 6 6 1 . . . . . . . . . . . . . . Launcher 2 | . . . . 1 11 8 6 4 3 . . . 3 5 . . 1 . . . 4 5 4 1 . . . Special Melee Weapon 1 | . . . . . . . . . . . 4 2 . . . 3 3 3 3 4 . . . . 4 2 . Naked Turns . | . . . . . . . . . . . . . . . . . . . . . . . . . . . . Heaviest Build 38 | 11 24 24 34 24 25 37 37 32 18 37 19 22 18 31 38 38 29 12 15 18 26 22 21 23 35 28 38 Greatest Support 89 | 20 26 26 26 26 26 35 35 33 19 33 19 19 31 36 89 89 80 22 10 10 22 22 32 32 41 27 27 Greatest Overweight (x) 9 | 2 1 . 1 . . 1 1 1 1 1 . 1 . . . 9 2 1 1 1 2 . . 1 1 1 8 Average Overweight (x) . | . . . . . . . . . . . . . . . . 1 . . . . . . . . . . . Largest Inventory Capacity 10 | 8 10 10 10 5 5 10 10 10 10 10 5 5 5 5 5 5 5 5 5 5 5 5 5 5 5 10 10 Average Capacity 6 | 6 7 10 5 5 5 6 10 10 10 9 5 5 5 5 5 5 5 5 5 5 5 5 5 5 5 8 5 Most Carried 10 | 8 10 9 7 5 5 10 10 10 10 10 5 5 5 5 5 5 5 5 5 5 5 5 5 5 5 10 10 Average Carried 5 | 2 5 8 4 4 5 6 9 9 9 9 4 4 4 3 4 4 4 4 4 4 4 4 4 4 4 8 4 Final Capacity 10 | 8 10 10 5 5 5 10 10 10 10 5 5 5 5 5 5 5 5 5 5 5 5 5 5 5 5 10 5 Final Carried 10 | 8 9 8 5 5 5 10 9 10 10 4 5 5 5 4 5 5 5 5 5 5 5 5 3 5 5 10 1 Class Distribution -------------------- 32% | Hacker-Mutant 24% | Wizard-Mutant 9% | Wizard-Sprinter 9% | Mutant 7% | Scavenger-Mutant 5% | Bothacker-Mutant 5% | Bothacker-Sprinter 4% | Hacker-Sprinter Dominant Class ---------------- Mutant | -10/Materials Mutant | -10/Mines Mutant | -9/Materials Hacker-Mutant | -9/Storage Mutant | -9/Garrison Hacker-Mutant | -8/Materials Hacker-Mutant | -7/Factory Hacker-Mutant | -7/Garrison Hacker-Sprinter | -6/Factory Hacker-Mutant | -6/Garrison Hacker-Sprinter | -6/Factory Bothacker-Sprinter | -6/Garrison Bothacker-Sprinter | -5/Factory Bothacker-Mutant | -5/Extension Scavenger-Mutant | -5/Cetus Scavenger-Mutant | -5/Archives Wizard-Mutant | -5/Hub_04(d) Wizard-Sprinter | -4/Factory Wizard-Sprinter | -4/Upper Caves Wizard-Sprinter | -4/Upper Caves Wizard-Mutant | -4/Zhirov Wizard-Mutant | -3/Proximity Caves Wizard-Mutant | -3/Research Wizard-Mutant | -3/Garrison Wizard-Mutant | -3/Research Wizard-Mutant | -3/Quarantine Wizard-Mutant | -2/Research Resources | -11 -10 -10 -9 -9 -9 -8 -7 -7 -6 -6 -6 -6 -5 -5 -5 -5 -5 -4 -4 -4 -4 -3 -3 -3 -3 -3 -2 ----------- Run | Scr Mat Min Mat Sto Gar Mat Fac Gar Fac Gar Fac Gar Fac Ext Cet Arc Hub Fac Upp Upp Zhi Pro Res Gar Res Qua Res Matter Collected 8970 | 340 255 . . 366 . 494 166 456 65 473 10 417 132 245 390 249 138 57 158 307 . 378 277 1534 1431 523 109 Remotely 283 | 283 . . . . . . . . . . . . . . . . . . . . . . . . . . . Salvage Created 6283 | 174 203 . . 736 77 963 97 362 . 262 . 329 99 48 289 222 204 . 85 113 . 207 . 307 567 621 318 Parts 350 | 21 15 . . 32 6 62 4 13 . 12 . 14 15 3 16 19 7 . 8 20 . 7 . 16 22 32 6 Haulers Intercepted 15 | . 1 . . 5 . 2 . . . . . . . . . . . . . . . . . . 3 2 2 Recyclers Shooed 5 | . 1 . . 4 . . . . . . . . . . . . . . . . . . . . . . . Parts Field Recycled . | . . . . . . . . . . . . . . . . . . . . . . . . . . . . Retrieved Matter . | . . . . . . . . . . . . . . . . . . . . . . . . . . . . Parts Self-Destructed 35 | . . . . . . . . . . . . . . . . . . . 6 15 . 14 . . . . . Prevented . | . . . . . . . . . . . . . . . . . . . . . . . . . . . . Kills | -11 -10 -10 -9 -9 -9 -8 -7 -7 -6 -6 -6 -6 -5 -5 -5 -5 -5 -4 -4 -4 -4 -3 -3 -3 -3 -3 -2 ------- Run | Scr Mat Min Mat Sto Gar Mat Fac Gar Fac Gar Fac Gar Fac Ext Cet Arc Hub Fac Upp Upp Zhi Pro Res Gar Res Qua Res Combat Hostiles Destroyed 134 | . 6 . . 9 2 21 4 12 1 10 . 8 8 1 7 1 3 . . 13 . 7 . 12 5 3 1 Melee 3 | . . . . . . . . . . . . . . . . . . . . . . . . . . 2 1 Guns 28 | . 3 . . 5 2 6 . . . . . . . . 5 1 . . . . . . . . 5 1 . Cannons 24 | . 3 . . 4 . . 2 3 1 3 . 8 . . . . . . . . . . . . . . . AOE 78 | . . . . . . 14 2 9 . 7 . . 8 1 2 . 3 . . 13 . 7 . 12 . . . Classes Destroyed 16 | 2 3 . . 3 . 1 . 3 1 . . 1 . . . . 1 . . . . . . . . 1 . Worker 12 | . . . . 3 . 2 . . . . . . . . . . 1 . . . . . . . 1 4 1 Builder 2 | . . . . . . . . . . . . . . . . . 1 . . . . . . . . 1 . Tunneler 5 | 5 . . . . . . . . . . . . . . . . . . . . . . . . . . . Hauler 15 | . 1 . . 5 . 2 . . . . . . . . . . . . . . . . . . 3 2 2 Recycler 3 | 1 . . . 1 . 1 . . . . . . . . . . . . . . . . . . . . . Operator 9 | . . . . 1 . 2 . . . . . . . . . 4 . . . . . . . . . 2 . Watcher 4 | . . . . . . 3 . . . . . . . . . . . . . . . . . . . . 1 Swarmer 50 | . 3 . . 1 . 5 2 . . 2 . . 8 . 3 . . . . 13 . 4 . 7 2 . . Grunt 56 | . 3 . . 3 2 14 . 8 . 6 . 4 . . 1 . 2 . . . . 3 . 5 2 2 1 Brawler 3 | . . . . . . . . 1 . 1 . 1 . . . . . . . . . . . . . . . Duelist 6 | . . . . . . . . 2 . 1 . 2 . . . . 1 . . . . . . . . . . Sentry 10 | . . . . 5 . 2 2 . . . . . . . . 1 . . . . . . . . . . . Hunter 1 | . . . . . . . . 1 . . . . . . . . . . . . . . . . . . . Programmer 4 | . . . . . . . . . . . . 1 . . 1 . . . . . . . . . 1 1 . Behemoth 2 | . . . . . . . . . 1 . . . . 1 . . . . . . . . . . . . . Cetus Guard 2 | . . . . . . . . . . . . . . . 2 . . . . . . . . . . . . Alpha 7 1 | . . . . . . . . . . . . . . . . . . . . . . . . . . 1 . Thug 1 | . . . . 1 . . . . . . . . . . . . . . . . . . . . . . . Commander 1 | . . . . . . . . . . . . . . . . . . . 1 . . . . . . . . Best Kill Streak 5 | 4 2 . . 5 2 5 2 5 1 5 . 3 4 1 2 4 4 . . 5 . 3 . 5 3 4 1 Combat Bots Only 5 | . 2 . . 4 2 4 2 5 1 5 . 3 4 1 2 1 3 . . 5 . 3 . 5 3 1 1 Max Kills in Single Turn 4 | 1 1 . . 1 1 4 2 4 1 2 . 1 4 1 2 1 4 . 1 3 . 3 . 3 1 1 1 Gunslinging . | . . . . . . . . . . . . . . . . . . . . . . . . . . . . Exploded 4 | . . . . . . 4 2 4 . 2 . . 4 1 2 . 3 . . 3 . 3 . 3 . . . Melee 1 | . . . . . . . . . . . . . . . . . . . . . . . . . . 1 1 Uniques/NPCs Destroyed . | . . . . . . . . . . . . . . . . . . . . . . . . . . . . Combat | -11 -10 -10 -9 -9 -9 -8 -7 -7 -6 -6 -6 -6 -5 -5 -5 -5 -5 -4 -4 -4 -4 -3 -3 -3 -3 -3 -2 -------- Run | Scr Mat Min Mat Sto Gar Mat Fac Gar Fac Gar Fac Gar Fac Ext Cet Arc Hub Fac Upp Upp Zhi Pro Res Gar Res Qua Res Damage Taken 6755 | . 145 . . 227 33 585 383 488 62 151 . 481 78 122 1151 151 233 33 . 14 . 23 . 132 363 372 1528 Core 1265 | . 31 . . 12 . 158 112 85 11 57 . 116 6 . 177 9 69 . . . . . . 50 47 76 249 Absorbed by Shields 719 | . . . . . . 222 113 . . . . . 62 . 138 63 42 . . 14 . . . 39 . 26 . Reduced by Siege Mode 8 | . . . . . . . . . . . . . . . . 8 . . . . . . . . . . . Core Remaining (%) 71 | 100 . 83 . . 67 66 . 65 . . . 50 . . . . 67 . . . . 94 . . . 52 . Volleys Fired 512 | 15 38 . . 60 4 85 14 29 13 21 5 45 11 8 32 21 6 . 14 9 . 6 . 16 55 5 . Largest 2 | 2 2 . . 2 1 2 2 2 1 2 1 1 1 1 2 2 1 . 1 1 . 1 . 1 2 2 . Hottest 161 | 40 100 . . 100 65 100 96 96 48 87 48 48 36 81 88 161 46 . 46 46 . 46 . 46 94 65 . Shots Fired 635 | 30 50 . . 77 4 85 21 35 13 34 5 45 11 8 38 37 6 . 14 9 . 6 . 16 84 7 . Gun 376 | 30 41 . . 39 4 74 . . . 11 . . . 1 30 37 4 . 13 . . . . 2 83 7 . Cannon 161 | . 7 . . 38 . . 20 17 13 15 5 45 . . . . . . . . . . . . 1 . . Launcher 78 | . . . . . . 11 1 10 . 8 . . 7 1 8 . 2 . 1 9 . 6 . 14 . . . Special 20 | . 2 . . . . . . 8 . . . . 4 6 . . . . . . . . . . . . . Kinetic 382 | 30 48 . . 43 . . 20 17 13 15 5 45 . . 18 19 4 . 13 . . . . 2 83 7 . Thermal 152 | . 2 . . 34 4 72 . 8 . 11 . . . 1 2 18 . . . . . . . . . . . Explosive 76 | . . . . . . 11 1 8 . 8 . . 7 1 8 . 2 . 1 9 . 6 . 14 . . . Electromagnetic 15 | . . . . . . 2 . 2 . . . . . . 10 . . . . . . . . . 1 . . Robot Hit Streak 22 | 4 7 . . 8 1 12 9 6 7 5 1 7 8 15 22 18 . . 11 . . . . 14 21 11 . Robot Miss Streak 6 | 2 3 . . 5 2 6 2 4 1 2 2 5 . . 2 1 . . 2 . . . . . 6 . . Penetration Max . | . . . . . . . . . . . . . . . . . . . . . . . . . . . . Secondary Targets 1 | . . . . . . . . . . . . . . . . . . . . . . . . . 1 . . Max Gunslinging Chain 1 | . . . . . . . . . . . . . . . . . . . . . . . . . 1 . . Shots Hit Robots 434 | 17 30 . . 54 2 47 12 16 10 19 1 28 6 7 28 30 2 2 11 . . . . 7 73 18 14 Core Hits 375 | 8 10 . . 54 2 47 6 35 3 29 . 12 14 2 31 13 7 . 5 14 . 13 . 32 23 11 4 Critical Kills 1 | . . . . . . . . . . . . . . . . . . . . . . . . . . 1 . Critical Parts Destroyed 10 | . . . . . . . . . . . . . . . 1 1 . . . . . . . . 7 1 . Critical Strikes 22 | . . . . 2 . 5 . 2 . 1 . . . . 1 1 . . . . . . . . 8 2 . Burn 5 | . . . . . . 5 . . . . . . . . . . . . . . . . . . . . . Destroy 12 | . . . . . . . . . . . . . . . 1 1 . . . . . . . . 8 2 . Blast 4 | . . . . 2 . . . 1 . 1 . . . . . . . . . . . . . . . . . Sever 1 | . . . . . . . . 1 . . . . . . . . . . . . . . . . . . . Melee Attacks 68 | . . . . . . . . . . . . 2 . . . . 2 3 . . . . . 5 14 26 16 Impact . | . . . . . . . . . . . . . . . . . . . . . . . . . . . . Slashing 39 | . . . . . . . . . . . . . . . . . . . . . . . . . . 23 16 Piercing . | . . . . . . . . . . . . . . . . . . . . . . . . . . . . Sneak Attacks 20 | . . . . . . . . . . . . . . . . . 1 . . . . . . . 6 10 3 Combat Hostiles 1 | . . . . . . . . . . . . . . . . . . . . . . . . . . 1 . Follow-up Attacks . | . . . . . . . . . . . . . . . . . . . . . . . . . . . . Damage Inflicted 24100 | 191 311 8 . 907 49 2762 481 1465 267 1767 49 729 650 142 1081 781 546 . 408 1736 . 1497 . 2840 1447 2573 1413 Guns 5170 | 191 213 . . 420 49 1226 . . . 65 . . . . 409 778 . . 347 . . . . 24 1401 47 . Cannons 2259 | . 83 . . 326 . . 319 187 267 253 49 729 . . . . . . . . . . . . 46 . . Explosions 12389 | . . . . . . 1456 162 1202 . 1449 . . 650 142 672 . 546 . 61 1736 . 1497 . 2816 . . . Melee 3939 | . . . . . . . . . . . . . . . . . . . . . . . . . . 2526 1413 Ramming 267 | . 15 8 . 161 . 80 . . . . . . . . . 3 . . . . . . . . . . . Kinetic 5084 | 191 296 . . 401 . . 319 187 267 253 49 729 . . 223 350 . . 347 . . . . 24 1401 47 . Thermal 2160 | . . . . 345 49 1173 . 76 . 65 . . . . 24 428 . . . . . . . . . . . Explosive 11809 | . . . . . . 1456 162 1069 . 1449 . . 650 142 672 . 99 . 61 1736 . 1497 . 2816 . . . Electromagnetic 841 | . . . . . . 53 . 133 . . . . . . 162 . 447 . . . . . . . 46 . . Impact . | . . . . . . . . . . . . . . . . . . . . . . . . . . . . Slashing 3939 | . . . . . . . . . . . . . . . . . . . . . . . . . . 2526 1413 Piercing . | . . . . . . . . . . . . . . . . . . . . . . . . . . . . Highest Corruption 6 | . . . . . . 1 . . . . . . . 1 6 6 1 . . . . . . . . 1 . Average Corruption 1 | . . . . . . 1 . . . . . . . 1 3 3 1 . . . . . . . . 1 . Corruption Purged 6 | . . . . . . . . . . . . . . . . 6 . . . . . . . . . . . Effects 24 | . . . . . . 9 . . . . . . . 1 8 3 1 . . . . . . . . 2 . Message Errors 5 | . . . . . . 3 . . . . . . . . 1 . . . . . . . . . . 1 . Matter Fused 4 | . . . . . . . . . . . . . . . 2 2 . . . . . . . . . . . Heat Flow Errors 1 | . . . . . . . . . . . . . . . 1 . . . . . . . . . . . . Energy Discharges 4 | . . . . . . 2 . . . . . . . . 2 . . . . . . . . . . . . Data Loss (minor) 7 | . . . . . . 3 . . . . . . . 1 1 . 1 . . . . . . . . 1 . Misfires 1 | . . . . . . . . . . . . . . . . 1 . . . . . . . . . . . Weapon Failures 2 | . . . . . . 1 . . . . . . . . 1 . . . . . . . . . . . . Overload Shots . | . . . . . . . . . . . . . . . . . . . . . . . . . . . . Overflow Damage 1511 | . . . . . . 33 11 . . 29 . 11 47 4 . . 58 . 24 120 . 91 . 53 . 601 429 Projectiles 22 | . . . . . . . 11 . . . . 11 . . . . . . . . . . . . . . . Explosions 459 | . . . . . . 33 . . . 29 . . 47 4 . . 58 . 24 120 . 91 . 53 . . . Melee 1030 | . . . . . . . . . . . . . . . . . . . . . . . . . . 601 429 Knockbacks 16 | . 2 . . 3 . 1 . 2 . 1 . 7 . . . . . . . . . . . . . . . Impact 4 | . 1 . . 2 . 1 . . . . . . . . . . . . . . . . . . . . . Kinetic 12 | . 1 . . 1 . . . 2 . 1 . 7 . . . . . . . . . . . . . . . Secondary . | . . . . . . . . . . . . . . . . . . . . . . . . . . . . Self-Inflicted Damage 230 | . . . . . . 31 38 14 . . . . . . . . 147 . . . . . . . . . . Shots 5 | . . . . . . 1 1 1 . . . . . . . . 2 . . . . . . . . . . Rammed 1 | . . . . . . . . . . . . . . . . 1 . . . . . . . . . . . Targets Rammed 40 | . 2 1 . 28 . 7 1 . . . . . . . . 1 . . . . . . . . . . . Kicked 39 | . 2 1 . 28 . 7 1 . . . . . . . . . . . . . . . . . . . . Crushed . | . . . . . . . . . . . . . . . . . . . . . . . . . . . . Highest Temperature 238 | . 22 . . 180 . 124 168 39 . 6 . 21 4 56 238 105 . . . . . . . . . . . Average Temperature 33 | . 8 . . 39 . 28 76 15 . 4 . 10 4 13 80 55 . . . . . . . . . . . Received Heat Transfer 1120 | . 12 . . 51 18 188 128 207 18 72 . 177 . 18 127 4 22 . . . . . . 12 . 30 36 Siege Activations 1 | . . . . . . . . . . . . . . . . 1 . . . . . . . . . . . Total Turns 50 | . . . . . . . . . . . . . . . . 50 . . . . . . . . . . . Longest Duration 50 | . . . . . . . . . . . . . . . . 50 . . . . . . . . . . . Robots Corrupted . | . . . . . . . . . . . . . . . . . . . . . . . . . . . . Combat Hostiles . | . . . . . . . . . . . . . . . . . . . . . . . . . . . . Parts Fried 5 | . . . . . . . . . . . . . . . . . 5 . . . . . . . . . . Impact Corruptions . | . . . . . . . . . . . . . . . . . . . . . . . . . . . . Robots Melted 1 | . . . . . . 1 . . . . . . . . . . . . . . . . . . . . . Combat Hostiles 1 | . . . . . . 1 . . . . . . . . . . . . . . . . . . . . . Parts Melted 2 | . . . . 1 . . . . . . . . . . . 1 . . . . . . . . . . . Heat Transferred 3605 | . . . . 442 74 1979 . 259 . 259 . . . . 37 555 . . . . . . . . . . . Parts Sabotaged . | . . . . . . . . . . . . . . . . . . . . . . . . . . . . Parts Stolen . | . . . . . . . . . . . . . . . . . . . . . . . . . . . . Parts Stripped . | . . . . . . . . . . . . . . . . . . . . . . . . . . . . Power Chain Reactions . | . . . . . . . . . . . . . . . . . . . . . . . . . . . . Missiles Intercepted . | . . . . . . . . . . . . . . . . . . . . . . . . . . . . Alert | -11 -10 -10 -9 -9 -9 -8 -7 -7 -6 -6 -6 -6 -5 -5 -5 -5 -5 -4 -4 -4 -4 -3 -3 -3 -3 -3 -2 ------- Run | Scr Mat Min Mat Sto Gar Mat Fac Gar Fac Gar Fac Gar Fac Ext Cet Arc Hub Fac Upp Upp Zhi Pro Res Gar Res Qua Res Peak Influence 1481 | 30 318 64 24 540 141 700 542 853 639 1210 759 1135 759 603 561 364 883 601 . . . . 383 1481 974 838 920 Initial 832 | . 19 64 24 9 76 68 318 147 447 447 634 531 595 293 28 144 4 383 . . . . 177 287 832 99 72 Average 434 | 20 131 64 24 281 109 313 212 661 515 960 730 921 457 333 349 203 166 448 . . . . 252 1202 567 293 479 Maximum Alert Level 4 | . 1 . . 2 . 3 2 3 2 4 3 4 3 2 2 1 3 2 . . . . 1 4 3 3 3 Low Security (%) 29 | 100 66 100 100 32 100 30 54 4 . . . . . 21 9 65 72 . . . . . 31 . 24 35 16 Level 1 28 | . 33 . . 43 . 43 39 3 . . . . 39 33 73 34 18 52 . . . . 68 4 11 41 14 Level 2 23 | . . . . 24 . 24 6 33 100 20 23 29 52 45 16 . 2 47 . . . . . 4 20 21 62 Level 3 10 | . . . . . . 1 . 57 . 38 76 35 7 . . . 6 . . . . . . 12 43 1 6 Level 4 8 | . . . . . . . . . . 40 . 34 . . . . . . . . . . . 78 . . . Level 5 . | . . . . . . . . . . . . . . . . . . . . . . . . . . . . High Security . | . . . . . . . . . . . . . . . . . . . . . . . . . . . . Max Security . | . . . . . . . . . . . . . . . . . . . . . . . . . . . . Squads Dispatched 58 | . 2 . . 3 . 6 5 . 3 . 1 . 3 1 . . 4 1 . . . . 3 . 9 9 8 Investigation 9 | . 2 . . 1 . 1 1 . . . . . . 1 . . 1 . . . . . 1 . . . 1 Extermination 10 | . . . . . . . 1 . . . . . 1 . . . . . . . . . . . 3 3 2 Reinforcement 27 | . . . . . . 5 2 . . . 1 . 2 . . . 3 1 . . . . . . 5 4 4 Assault 4 | . . . . 2 . . . . . . . . . . . . . . . . . . . . 1 . 1 Garrison 8 | . . . . . . . 1 . 3 . . . . . . . . . . . . . 2 . . 2 . Intercept . | . . . . . . . . . . . . . . . . . . . . . . . . . . . . Construction Impeded 2 | . . . . . . 1 . . . . . . 1 . . . . . . . . . . . . . . Haulers Reinforced 8 | . . . . . . 1 . . . . 1 . 1 . . . . 1 . . . . . . 2 . 2 Active Scanning Responses . | . . . . . . . . . . . . . . . . . . . . . . . . . . . . Cargo Convoy Interrupts . | . . . . . . . . . . . . . . . . . . . . . . . . . . . . Stealth | -11 -10 -10 -9 -9 -9 -8 -7 -7 -6 -6 -6 -6 -5 -5 -5 -5 -5 -4 -4 -4 -4 -3 -3 -3 -3 -3 -2 --------- Run | Scr Mat Min Mat Sto Gar Mat Fac Gar Fac Gar Fac Gar Fac Ext Cet Arc Hub Fac Upp Upp Zhi Pro Res Gar Res Qua Res Distress Signals 20 | . 1 . . 2 . 2 1 . 2 . . . 1 3 2 . 1 1 . . . . . . 1 1 2 Communications Jammed 47 | . . . . . . . . . . . . . . . . . . . . . . . . 1 25 1 20 Distress Signals 38 | . . . . . . . . . . . . . . . . . . . . . . . . 1 19 . 18 Times Spotted 454 | . 26 . 2 34 3 58 15 23 4 19 1 21 10 19 22 13 22 4 5 2 . 5 3 30 32 29 52 Peak Tracking Total 10 | . 5 . 2 6 3 7 4 8 3 6 1 7 6 5 9 1 5 2 4 3 . 5 2 8 7 5 10 Tactical Retreats 17 | . 2 . . 1 . . . 1 . 2 . . 1 1 . . . . 1 . . . . 1 3 2 2 Traps | -11 -10 -10 -9 -9 -9 -8 -7 -7 -6 -6 -6 -6 -5 -5 -5 -5 -5 -4 -4 -4 -4 -3 -3 -3 -3 -3 -2 ------- Run | Scr Mat Min Mat Sto Gar Mat Fac Gar Fac Gar Fac Gar Fac Ext Cet Arc Hub Fac Upp Upp Zhi Pro Res Gar Res Qua Res Traps Triggered 23 | . . . . 1 1 1 . 1 . 2 . 2 . 4 . . 2 . . . . . 1 4 . 4 . Indirectly 1 | . . . . . . . . . . . . . . . . . 1 . . . . . . . . . . Trap Hack Attempts 2 | . . . . . . . . . . . . . . . . . . . . . . . . . 2 . . Triggered . | . . . . . . . . . . . . . . . . . . . . . . . . . . . . Disarmed 3 | . . . . . . . . . . . . . . . . . . . . . . . . . 3 . . Reprogrammed 1 | . . . . . . . . . . . . . . . . . . . . . . . . . 1 . . Reused 1 | . . . . . . . . . . . . . . . . . . . . . . . . . 1 . . Traps Extracted . | . . . . . . . . . . . . . . . . . . . . . . . . . . . . Installed . | . . . . . . . . . . . . . . . . . . . . . . . . . . . . Triggered 1 | . . . . . . . . . . . . . . . . . . . . . . . . . 1 . . Machines | -11 -10 -10 -9 -9 -9 -8 -7 -7 -6 -6 -6 -6 -5 -5 -5 -5 -5 -4 -4 -4 -4 -3 -3 -3 -3 -3 -2 ---------- Run | Scr Mat Min Mat Sto Gar Mat Fac Gar Fac Gar Fac Gar Fac Ext Cet Arc Hub Fac Upp Upp Zhi Pro Res Gar Res Qua Res Machines Disabled 75 | . . . . 1 . 5 . 3 . 2 . 4 4 2 . 4 23 4 1 . . . 2 7 3 7 3 Max in Single Turn 12 | . . . . . . 1 . 1 . 1 . 1 . 1 . 1 12 . . . . . . 2 1 1 . Garrison Access 1 | . . . . . . . . . . . . . . . . . . . . . . . . . . 1 . Garrison Relay 9 | . . . . . . . . 2 . 2 . 2 . . . . . . . . . . . 3 . . . Network Hub 2 | . . . . . . . . . . . . . . . . . 2 . . . . . . . . . . Machines Sabotaged . | . . . . . . . . . . . . . . . . . . . . . . . . . . . . Garrisons Compromised . | . . . . . . . . . . . . . . . . . . . . . . . . . . . . Overloaded Fab Kills . | . . . . . . . . . . . . . . . . . . . . . . . . . . . . Fab Network Shutdowns . | . . . . . . . . . . . . . . . . . . . . . . . . . . . . Hacking | -11 -10 -10 -9 -9 -9 -8 -7 -7 -6 -6 -6 -6 -5 -5 -5 -5 -5 -4 -4 -4 -4 -3 -3 -3 -3 -3 -2 --------- Run | Scr Mat Min Mat Sto Gar Mat Fac Gar Fac Gar Fac Gar Fac Ext Cet Arc Hub Fac Upp Upp Zhi Pro Res Gar Res Qua Res Machines Accessed 92 | . 8 . . 13 . 11 5 . 3 . 2 . 4 5 . . 7 4 2 1 4 . 1 . 4 12 6 Terminals 52 | . 6 . . 11 . 7 3 . . . . . 3 5 . . 6 . . . . . . . 2 7 2 Fabricators 5 | . . . . . . . 1 . . . . . . . . . . 2 . . . . . . 1 . 1 Repair Stations 8 | . . . . . . 2 . . 2 . . . 1 . . . . 1 . . . . . . . 2 . Recycling Units 5 | . 2 . . 1 . 1 . . . . . . . . . . . . . . . . . . . . 1 Scanalyzers 7 | . . . . . . 1 . . . . 1 . . . . . . 1 . . . . . . 1 2 1 Garrison Access 8 | . . . . 1 . . 1 . 1 . 1 . . . . . 1 . . . . . 1 . . 1 1 Total Hacks 314 | . 28 . . 33 . 26 13 . 11 . 8 . 19 9 . . 22 16 7 1 17 . 2 . 20 52 30 Successful 216 | . 15 . . 24 . 16 9 . 10 . 7 . 10 3 . . 9 14 7 1 17 . 2 . 13 36 23 Failed 97 | . 12 . . 9 . 10 4 . 1 . 1 . 9 6 . . 13 2 . . . . . . 7 16 7 Catastrophic 13 | . . . . . . 2 . . . . . . 1 4 . . . . . . . . . . 2 4 . Database Lockouts 1 | . 1 . . . . . . . . . . . . . . . . . . . . . . . . . . Manual 140 | . 19 . . 12 . 18 5 . 3 . 2 . 4 6 . . 10 4 . . . . 1 . 13 26 17 Terminals 188 | . 23 . . 29 . 20 10 . . . . . 14 9 . . 18 . . . . . . . 16 34 15 Fabricators 17 | . . . . . . . 1 . . . . . . . . . . 8 . . . . . . 1 . 7 Repair Stations 21 | . . . . . . 3 . . 6 . . . 5 . . . . 3 . . . . . . . 4 . Recycling Units 10 | . 5 . . 1 . 1 . . . . . . . . . . . . . . . . . . . . 3 Scanalyzers 25 | . . . . . . 2 . . . . 5 . . . . . . 5 . . . . . . 3 8 2 Garrison Access 28 | . . . . 3 . . 2 . 5 . 3 . . . . . 4 . . . . . 2 . . 6 3 Terminal Hacks 111 | . 9 . . 18 . 7 6 . . . . . 6 2 . . 6 . 7 1 17 . . . 8 16 8 Record 11 | . . . . . . . . . . . . . . . . . . . 6 . 5 . . . . . . Part Schematic 5 | . . . . . . . . . . . . . 1 . . . . . . . 4 . . . . . . Robot Analysis 6 | . 2 . . . . . . . . . . . . . . . . . . . 4 . . . . . . Prototype ID Bank 15 | . 4 . . 2 . 2 1 . . . . . 1 . . . . . . . 4 . . . 1 . . Open Door 7 | . . . . 4 . . . . . . . . 1 . . . . . 1 1 . . . . . . . Level Access Points 2 | . . . . . . . . . . . . . . . . . 1 . . . . . . . . . 1 Branch Access Points 2 | . . . . . . . 1 . . . . . . . . . . . . . . . . . 1 . . Emergency Access Points 1 | . . . . . . . . . . . . . . . . . . . . . . . . . . . 1 Machine Index 2 | . . . . 1 . . . . . . . . . . . . . . . . . . . . . . 1 Terminal Index 3 | . . . . 1 . . . . . . . . . . . . 1 . . . . . . . . 1 . Repair Station Index 1 | . . . . . . . . . . . . . . . . . . . . . . . . . . 1 . Garrison Index 1 | . . . . . . 1 . . . . . . . . . . . . . . . . . . . . . Alert Level 1 | . . . . 1 . . . . . . . . . . . . . . . . . . . . . . . Unreport Threat 31 | . 1 . . 4 . 4 2 . . . . . 2 2 . . 2 . . . . . . . 4 7 3 Locate Traps 5 | . 1 . . 2 . . . . . . . . 1 . . . . . . . . . . . . . 1 Disarm Traps 1 | . . . . . . . . . . . . . . . . . . . . . . . . . 1 . . Dispatch Records 1 | . . . . . . . . . . . . . . . . . . . . . . . . . . 1 . Patrol Status 1 | . . . . . . . . . . . . . . . . . . . . . . . . . . 1 . Recall Extermination 1 | . . . . . . . . . . . . . . . . . . . . . . . . . . 1 . Recall Reinforcements 3 | . . . . . . . . . . . . . . . . . . . . . . . . . . 2 1 Recall Assault 1 | . . . . 1 . . . . . . . . . . . . . . . . . . . . . . . Hauler Manifests 1 | . 1 . . . . . . . . . . . . . . . . . . . . . . . . . . Registered Components 2 | . . . . . . . 1 . . . . . . . . . . . . . . . . . 1 . . Zone Layout 7 | . . . . 2 . . 1 . . . . . . . . . 2 . . . . . . . . 2 . Fabricator Hacks 6 | . . . . . . . . . . . . . . . . . . 3 . . . . . . . . 3 Load Schematic 2 | . . . . . . . . . . . . . . . . . . 1 . . . . . . . . 1 Build 4 | . . . . . . . . . . . . . . . . . . 2 . . . . . . . . 2 Repair Station Hacks 19 | . . . . . . 3 . . 6 . . . 3 . . . . 3 . . . . . . . 4 . Scan Component 7 | . . . . . . 1 . . 3 . . . 1 . . . . 1 . . . . . . . 1 . Repair 6 | . . . . . . 1 . . 2 . . . 1 . . . . 1 . . . . . . . 1 . Refit 6 | . . . . . . 1 . . 1 . . . 1 . . . . 1 . . . . . . . 2 . Recycling Unit Hacks 2 | . . . . . . . . . . . . . . . . . . . . . . . . . . . 2 Retrieve Components 2 | . . . . . . . . . . . . . . . . . . . . . . . . . . . 2 Scanalyzer 24 | . . . . . . 2 . . . . 5 . . . . . . 4 . . . . . . 3 8 2 Insert Component 13 | . . . . . . 1 . . . . 2 . . . . . . 1 . . . . . . 3 4 2 Analyze 11 | . . . . . . 1 . . . . 3 . . . . . . 3 . . . . . . . 4 . Garrison Access Hacks 9 | . . . . 2 . . 1 . 2 . 1 . . . . . . . . . . . 1 . . 1 1 Unlock Access 6 | . . . . 1 . . 1 . 1 . 1 . . . . . . . . . . . 1 . . . 1 Seal Access 1 | . . . . . . . . . . . . . . . . . . . . . . . . . . 1 . Coupler Status 2 | . . . . 1 . . . . 1 . . . . . . . . . . . . . . . . . . Unauthorized Hacks 45 | . 6 . . 4 . 4 2 . 2 . 1 . 1 1 . . 3 4 . . . . 1 . 2 7 7 Terminals 18 | . 4 . . 3 . 3 . . . . . . 1 1 . . 2 . . . . . . . 1 2 1 Track 1 | . . . . . . . . . . . . . . . . . 1 . . . . . . . . . . Assimilate 6 | . 2 . . 1 . 1 . . . . . . . . . . . . . . . . . . . 1 1 Botnet 2 | . . . . 1 . . . . . . . . . 1 . . . . . . . . . . . . . Disrupt 3 | . 2 . . . . 1 . . . . . . . . . . . . . . . . . . . . . Operators 5 | . . . . 1 . 1 . . . . . . 1 . . . . . . . . . . . 1 1 . Sabotage 1 | . . . . . . . . . . . . . . . . . 1 . . . . . . . . . . Fabricators 10 | . . . . . . . 1 . . . . . . . . . . 4 . . . . . . 1 . 4 Report 2 | . . . . . . . . . . . . . . . . . . 1 . . . . . . . . 1 Prioritize 2 | . . . . . . . . . . . . . . . . . . 1 . . . . . . . . 1 Siphon 2 | . . . . . . . . . . . . . . . . . . 1 . . . . . . . . 1 Haulers 4 | . . . . . . . 1 . . . . . . . . . . 1 . . . . . . 1 . 1 Repair Stations . | . . . . . . . . . . . . . . . . . . . . . . . . . . . . Recycling Units 5 | . 2 . . 1 . 1 . . . . . . . . . . . . . . . . . . . . 1 Reject 1 | . . . . . . . . . . . . . . . . . . . . . . . . . . . 1 Tunnel 4 | . 2 . . 1 . 1 . . . . . . . . . . . . . . . . . . . . . Scanalyzers . | . . . . . . . . . . . . . . . . . . . . . . . . . . . . Garrison Access 12 | . . . . . . . 1 . 2 . 1 . . . . . 1 . . . . . 1 . . 5 1 Broadcast 2 | . . . . . . . . . . . . . . . . . 1 . . . . . . . . 1 . Reprogram 9 | . . . . . . . . . 2 . 1 . . . . . . . . . . . 1 . . 4 1 Eject 1 | . . . . . . . 1 . . . . . . . . . . . . . . . . . . . . Data Cores Recovered 2 | . 1 . . 1 . . . . . . . . . . . . . . . . . . . . . . . Used . | . . . . . . . . . . . . . . . . . . . . . . . . . . . . Hacking Detections 60 | . 7 . . 7 . 5 5 . 2 . 1 . 4 4 . . 5 2 . . . . . . 4 9 5 Full Trace Events 2 | . . . . . . . . . . . . . . 1 . . . . . . . . . . . . 1 Feedback Events . | . . . . . . . . . . . . . . . . . . . . . . . . . . . . Feedback Blocked 1 | . . . . . . . . . . . . . . 1 . . . . . . . . . . . . . Robot Schematics Acquired . | . . . . . . . . . . . . . . . . . . . . . . . . . . . . Robots Built . | . . . . . . . . . . . . . . . . . . . . . . . . . . . . Matter . | . . . . . . . . . . . . . . . . . . . . . . . . . . . . Time . | . . . . . . . . . . . . . . . . . . . . . . . . . . . . Total Robot Build Rating . | . . . . . . . . . . . . . . . . . . . . . . . . . . . . Part Schematics Acquired 13 | . . . . . . 1 . . . . 2 . 1 . . . . 1 . . 4 . . . . 4 . Parts Built 4 | . . . . . . . . . . . . . . . . . . 2 . . . . . . . . 2 Matter 612 | . . . . . . . . . . . . . . . . . . 328 . . . . . . . . 284 Time 229 | . . . . . . . . . . . . . . . . . . 87 . . . . . . . . 142 Total Part Build Rating 16 | . . . . . . . . . . . . . . . . . . 6 . . . . . . . . 10 Parts Repaired 6 | . . . . . . 1 . . 2 . . . 1 . . . . 1 . . . . . . . 1 . Time 192 | . . . . . . 51 . . 57 . . . 19 . . . . 25 . . . . . . . 40 . Parts Recycled . | . . . . . . . . . . . . . . . . . . . . . . . . . . . . Recycled Matter . | . . . . . . . . . . . . . . . . . . . . . . . . . . . . Retrieved Matter . | . . . . . . . . . . . . . . . . . . . . . . . . . . . . Retrieved Components 20 | . . . . . . . . . . . . . . . . . . . . . . . . . . . 20 Parts Scanalyzed 8 | . . . . . . 1 . . . . 2 . . . . . . 1 . . . . . . . 4 . Part Schematics Acquired 8 | . . . . . . 1 . . . . 2 . . . . . . 1 . . . . . . . 4 . Parts Damaged 1 | . . . . . . . . . . . . . . . . . . . . . . . . . . 1 . Bothacking | -11 -10 -10 -9 -9 -9 -8 -7 -7 -6 -6 -6 -6 -5 -5 -5 -5 -5 -4 -4 -4 -4 -3 -3 -3 -3 -3 -2 ------------ Run | Scr Mat Min Mat Sto Gar Mat Fac Gar Fac Gar Fac Gar Fac Ext Cet Arc Hub Fac Upp Upp Zhi Pro Res Gar Res Qua Res Used RIF Installer 4 | . . . . . 1 . . 1 . 1 . . . . . . . . . . . . . 1 . . . Command Fork 1 | . . . . . . . . 1 . . . . . . . . . . . . . . . . . . . Zone Cloak 1 | . . . . . . . . . . . . . . . . . . . . . . . . 1 . . . Patrol Navigation 1 | . . . . . . . . . . 1 . . . . . . . . . . . . . . . . . Robots Hacked 23 | . . . . . . . . . . . . 1 3 4 . . 2 2 . . . . . 4 5 2 . Non-combat 6 | . . . . . . . . . . . . . 1 . . . 2 . . . . . . . 3 . . Combat 17 | . . . . . . . . . . . . 1 2 4 . . . 2 . . . . . 4 2 2 . Robot Hacks Applied 29 | . . . . . . . . . . . . 2 4 4 . . 2 2 . . . . . 4 9 2 . no_distress 1 | . . . . . . . . . . . . . . . . . 1 . . . . . . . . . . ignore_repairs 1 | . . . . . . . . . . . . . . . . . . . . . . . . . 1 . . find_fabricator 1 | . . . . . . . . . . . . . . . . . . . . . . . . . 1 . . drop_inventory 1 | . . . . . . . . . . . . . 1 . . . . . . . . . . . . . . purge_threat 4 | . . . . . . . . . . . . . . . . . . . . . . . . . 4 . . scatter_targeting 1 | . . . . . . . . . . . . . 1 . . . . . . . . . . . . . . spike_heat 2 | . . . . . . . . . . . . . 2 . . . . . . . . . . . . . . reboot_system 3 | . . . . . . . . . . . . 1 . 1 . . . 1 . . . . . . . . . overwrite_iff 8 | . . . . . . . . . . . . 1 . 1 . . . . . . . . . 2 2 2 . formatsys_low 2 | . . . . . . . . . . . . . . . . . 1 . . . . . . . 1 . . formatsys_high 5 | . . . . . . . . . . . . . . 2 . . . 1 . . . . . 2 . . . Relay Couplers Released 38 | . . . . . . . . 9 . 8 . 8 . . . . . . . . . . . 13 . . . Machine Destruction 38 | . . . . . . . . 9 . 8 . 8 . . . . . . . . . . . 13 . . . Attached 19 | . . . . . . . . 2 . 1 1 4 2 1 . . . . . . . . . 6 2 . . Robots Rewired 16 | . . . . . . . . . . . . . . 16 . . . . . . . . . . . . . Allies Hacked 1 | . . . . . . . . . . . . . . . . . . . . . . . . . . 1 . Hacks Repelled 1 | . . . . . . . . . . . . . . . . . . . . . . . . . . 1 . Allies | -11 -10 -10 -9 -9 -9 -8 -7 -7 -6 -6 -6 -6 -5 -5 -5 -5 -5 -4 -4 -4 -4 -3 -3 -3 -3 -3 -2 -------- Run | Scr Mat Min Mat Sto Gar Mat Fac Gar Fac Gar Fac Gar Fac Ext Cet Arc Hub Fac Upp Upp Zhi Pro Res Gar Res Qua Res Total Allies 63 | . 2 . . 3 . 1 . . 2 . 3 1 . 20 . . 1 1 2 . . . 2 4 3 11 7 Largest Group 9 | . 2 1 1 4 1 2 2 1 3 3 4 4 1 8 1 1 2 3 3 1 1 1 3 4 3 9 8 Highest-Rated Group 584 | . 67 57 60 136 71 87 93 86 157 157 185 241 128 361 154 161 166 243 254 181 181 181 278 313 278 584 240 Highest-Rated Ally 231 | . 57 57 60 71 71 77 84 86 93 93 98 110 128 137 154 161 160 177 179 181 181 181 188 200 197 192 231 Total Orders 8 | . 1 . . . . . . . . . . . . . . . . . . . . . . . 4 . 3 STAY 6 | . 1 . . . . . . . . . . . . . . . . . . . . . . . 3 . 2 FOLLOW 2 | . . . . . . . . . . . . . . . . . . . . . . . . . 1 . 1 Ally Attacks 1099 | . 32 . . 77 4 56 23 24 24 63 8 95 25 118 37 10 32 18 7 8 . 26 17 89 86 131 89 Total Damage 47514 | . 514 . . 1562 111 2682 891 1382 913 1811 199 2201 1332 2719 2672 681 2464 919 179 262 . 2018 1585 4455 4429 6246 5287 Kills 337 | . 15 . . 27 1 30 11 8 3 14 1 13 6 21 15 5 18 7 4 5 . 9 5 20 30 32 37 Allies Corrupted 2 | . . . . 1 . . . . . . . . . . . . . . . . . . . . . 1 . Allies Melted . | . . . . . . . . . . . . . . . . . . . . . . . . . . . . Intel | -11 -10 -10 -9 -9 -9 -8 -7 -7 -6 -6 -6 -6 -5 -5 -5 -5 -5 -4 -4 -4 -4 -3 -3 -3 -3 -3 -2 ------- Run | Scr Mat Min Mat Sto Gar Mat Fac Gar Fac Gar Fac Gar Fac Ext Cet Arc Hub Fac Upp Upp Zhi Pro Res Gar Res Qua Res Robot Analysis Total 6 | . 2 . . . . . . . . . . . . . . . . . . . 4 . . . . . . Derelict Logs Recovered 3 | . . . . . . . . . . . . . . . . . . . 1 2 . . . . . . . Drone Launches . | . . . . . . . . . . . . . . . . . . . . . . . . . . . . Drone Recoveries . | . . . . . . . . . . . . . . . . . . . . . . . . . . . . Decoded 0b10 Intel 55 | . . . . . . . . . . . . . . . . . . . . . . . 3 10 19 6 17 Garrisons 4 | . . . . . . . . . . . . . . . . . . . . . . . 1 . 1 1 1 Patrols 30 | . . . . . . . . . . . . . . . . . . . . . . . . 10 6 5 9 Investigations 2 | . . . . . . . . . . . . . . . . . . . . . . . 2 . . . . Reinforcements 7 | . . . . . . . . . . . . . . . . . . . . . . . . . 6 . 1 Guards 12 | . . . . . . . . . . . . . . . . . . . . . . . . . 6 . 6 Exploration | -11 -10 -10 -9 -9 -9 -8 -7 -7 -6 -6 -6 -6 -5 -5 -5 -5 -5 -4 -4 -4 -4 -3 -3 -3 -3 -3 -2 ------------- Run | Scr Mat Min Mat Sto Gar Mat Fac Gar Fac Gar Fac Gar Fac Ext Cet Arc Hub Fac Upp Upp Zhi Pro Res Gar Res Qua Res Turns Passed 23257 | 169 1454 48 75 2376 168 2279 881 748 232 699 242 995 843 1518 606 952 833 345 763 721 239 766 203 1397 1064 1776 865 Spaces Moved 17995 | 97 1212 31 46 1388 117 1318 617 401 283 535 197 609 637 990 313 189 746 543 805 629 204 617 184 1150 1225 1566 1346 Core 86 | 60 . . . . . . . . . . . . . . . 21 . . . . . . . . . . 5 Treads 351 | . . . . . . . . . . . . . . . 50 168 133 . . . . . . . . . . Legs 4652 | 37 793 31 46 1388 117 1318 617 305 . . . . . . . . . . . . . . . . . . . Wheels 475 | . . . . . . . . 95 . 380 . . . . . . . . . . . . . . . . . Hover 7360 | . . . . . . . . . . . . . 44 990 263 . 613 96 . . 144 617 184 1150 898 1020 1341 Flight 5071 | . 419 . . . . . . 1 283 155 197 609 593 . . . . 447 805 629 60 . . . 327 546 . Fastest Speed 27 | 50 37 120 120 120 120 120 120 32 32 32 32 32 32 45 45 160 48 32 32 32 32 46 38 38 27 27 36 Average Speed 68 | 98 91 120 125 120 120 120 120 117 39 76 32 45 33 50 67 197 76 38 32 32 43 46 44 45 38 67 38 Slowest Speed 500 | 150 130 120 200 120 120 200 200 200 102 105 32 102 51 51 160 500 160 105 102 102 172 46 46 96 104 120 450 Overloaded Moves 918 | . . . . . . . . . . . . . . 8 52 . 170 . . . . . 36 21 625 6 . Propulsion Burnouts . | . . . . . . . . . . . . . . . . . . . . . . . . . . . . Robots Hopped 13 | . 1 . . . . . . . . . . . 6 . . . . . 2 . . . . . . 4 . Cave-ins Triggered . | . . . . . . . . . . . . . . . . . . . . . . . . . . . . Teleports 2 | . . . . . . . . . . . . . . . . . . . . . . . . . . . 2 Exploration Rate (%) 46 | 3 96 12 5 92 38 88 13 43 6 53 3 52 11 83 69 84 54 15 59 70 60 73 4 79 18 95 20 Regions Visited 27 Branch Regions 11 Pre-discovered Areas 8 | . 2 . . 1 . 1 . . . . . . . . . . . . 1 . 3 . . . . . . Known Exits Taken 7 | . . . . 1 . . 1 . 1 . 1 . . . . . 1 . . . . . 1 . 1 . . Unknown Exits Taken 15 | 1 1 1 1 . . 1 . . . . . . 1 1 1 1 . 1 1 1 1 1 . . . 1 . Scrap Searched 5 | . . . . . . . . . . . . . . . . . . . 2 2 . 1 . . . . . Spaces Dug 81 | . 2 . . . . 25 8 8 . . . . 17 . . . . . . . . . . 17 . 4 . Terrain Destroyed 1012 | . 2 . . . . 99 11 38 3 27 2 . 40 3 53 1 344 . 18 136 . 107 . 122 2 4 . Melee 4 | . . . . . . . . . . . . . . . . . . . . . . . . . . 4 . Projectile 39 | . 2 . . . . 25 3 . 3 . 2 . . . . 1 . . 1 . . . . . 2 . . AOE 968 | . . . . . . 74 8 38 . 27 . . 40 3 53 . 343 . 17 136 . 107 . 122 . . . Terrain Rammed . | . . . . . . . . . . . . . . . . . . . . . . . . . . . . Walls Destroyed . | . . . . . . . . . . . . . . . . . . . . . . . . . . . . Machines Disabled . | . . . . . . . . . . . . . . . . . . . . . . . . . . . . Actions | -11 -10 -10 -9 -9 -9 -8 -7 -7 -6 -6 -6 -6 -5 -5 -5 -5 -5 -4 -4 -4 -4 -3 -3 -3 -3 -3 -2 --------- Run | Scr Mat Min Mat Sto Gar Mat Fac Gar Fac Gar Fac Gar Fac Ext Cet Arc Hub Fac Upp Upp Zhi Pro Res Gar Res Qua Res Total 28180 | 140 1516 42 64 2020 139 1914 731 631 387 787 370 1281 1254 2000 671 733 1001 677 1293 1138 355 1089 302 2006 1735 2235 1669 Wait 8471 | 12 208 10 10 503 12 429 74 153 85 181 159 565 577 811 289 491 222 119 451 477 125 452 109 769 368 533 277 Move 17944 | 96 1209 30 45 1387 116 1317 616 400 282 534 196 608 624 989 312 188 745 542 800 628 203 616 183 1149 1224 1559 1346 Hop 11 | . 1 . . . . . . . . . . . 6 . . . . . 2 . . . . . . 2 . Pick Up 133 | 8 11 . . 6 . 8 3 5 1 5 2 8 5 2 3 . 5 1 6 1 5 2 1 13 12 17 3 Fast Attach 184 | 7 12 . 2 11 1 25 5 7 3 1 1 3 11 3 11 13 6 4 5 5 9 . 3 6 11 15 4 Attach 77 | 1 2 . 3 2 . 3 2 1 1 4 . 4 3 3 7 . 3 1 4 5 1 . . 3 10 6 8 Detach 80 | 1 3 . 1 . . 6 1 . 1 2 1 3 3 5 6 3 1 1 4 5 2 1 . 6 9 10 5 Swap 117 | . 5 . . 4 1 9 8 19 . 13 3 . 1 . 5 3 . . . 2 . 9 4 2 15 11 3 Drop 255 | . 25 1 3 19 . 25 7 13 1 10 3 7 13 3 6 13 10 5 7 6 10 3 2 14 14 28 7 Fire 512 | 15 38 . . 60 4 85 14 29 13 21 5 45 11 8 32 21 6 . 14 9 . 6 . 16 55 5 . Melee 68 | . . . . . . . . . . . . 2 . . . . 2 3 . . . . . 5 14 26 16 Ram . | . . . . . . . . . . . . . . . . . . . . . . . . . . . . Kick 39 | . 2 1 . 28 . 7 1 . . . . . . . . . . . . . . . . . . . . Crush 1 | . . . . . . . . . . . . . . . . 1 . . . . . . . . . . . Escape Stasis 144 | . . . . . 5 . . 4 . 16 . 36 . 39 . . . . . . . . . 21 . 23 . Rewire 142 | . . . . . . . . . . . . . . 137 . . 1 1 . . . . . 2 1 . . Trap 2 | . . . . . . . . . . . . . . . . . . . . . . . . . 2 . . Miscellaneous . | . . . . . . . . . . . . . . . . . . . . . . . . . . . . Route ------- -11/Scrapyard -10/Materials (discovered 5 exits: [*Mat x3] / [*Min x2]) -10/Mines -9/Materials -9/Storage (discovered 2 exits: *Mat / Gar) -9/Garrison -8/Materials (discovered 2 exits: *Fac x2) -7/Factory (discovered 4 exits: *Fac / Low x2 / Gar) -7/Garrison -6/Factory -6/Garrison -6/Factory -6/Garrison -5/Factory -5/Extension (discovered 3 exits: *Fac x2 / [*Cet]) -5/Cetus (discovered 2 exits: *Fac / [*Arc]) -5/Archives (discovered 3 exits: *Fac / *Hub x2) -5/Hub_04(d) (discovered 4 exits: *Fac x4) -4/Factory -4/Upper Caves -4/Upper Caves (discovered 2 exits: *Res / *Zhi) -4/Zhirov -3/Proximity Caves -3/Research (discovered 2 exits: Arm / Gar) -3/Garrison (discovered 3 exits: *Res x3) -3/Research (discovered 3 exits: Arm / *Qua x2) -3/Quarantine -2/Research (discovered 1 exit: Gar) History --------- Turn | Location | Event 9 | -11/Scrapyard | Discovered new exit (range 16) 170 | -11/Scrapyard | Entered Materials 317 | -10/Materials | Build established: Mutant 384 | -10/Materials | Discovered new exit (range 14) 385 | -10/Materials | Discovered new exit (range 10) 479 | -10/Materials | Discovered new exit (range 3) 625 | -10/Materials | Discovered new exit (range 5) 631 | -10/Materials | Build established: Scavenger-Mutant 957 | -10/Materials | Build established: Mutant 1058 | -10/Materials | Discovered new exit (range 5) 1238 | -10/Materials | Central database locked down 1624 | -10/Materials | Entered Mines 1624 | -10/Mines | Accompanied by 1 ally 1653 | -10/Mines | Discovered new exit (range 8) 1672 | -10/Mines | Entered Materials 1672 | -9/Materials | Accompanied by 1 ally 1672 | -9/Materials | Evolved 2 slots: Utility x2 1689 | -9/Materials | Discovered new exit (range 15) 1747 | -9/Materials | Entered Storage 1747 | -9/Storage | Accompanied by 1 ally 2509 | -9/Storage | Build established: Hacker-Mutant 2701 | -9/Storage | Met a pair of Derelict thieves 3550 | -9/Storage | Discovered new exit (range 16) 3969 | -9/Storage | Identified exit to Garrison 4123 | -9/Storage | Entered Garrison 4123 | -9/Garrison | Accompanied by 1 ally 4196 | -9/Garrison | Triggered checkpoint 4253 | -9/Garrison | Discovered new exit (range 15) 4271 | -9/Garrison | Identified exit to Materials 4280 | -9/Garrison | Installed Relay Interface Framework 4291 | -9/Garrison | Entered Materials 4291 | -8/Materials | Accompanied by 1 ally 4291 | -8/Materials | Evolved 2 slots: Utility x2 5492 | -8/Materials | Repaired Cld. Ion Engine 5745 | -8/Materials | Discovered new exit (range 15) 6512 | -8/Materials | Discovered new exit (range 16) 6570 | -8/Materials | Entered Factory 6570 | -7/Factory | Accompanied by 2 allies 6570 | -7/Factory | Evolved 2 slots: Utility x2 6652 | -7/Factory | Identified exit to Lower Caves 6934 | -7/Factory | Discovered new exit (range 15) 7412 | -7/Factory | Garrison activated, responded to threat 7450 | -7/Factory | Identified exit to Garrison 7451 | -7/Factory | Entered Garrison 7451 | -7/Garrison | Accompanied by 1 ally 7457 | -7/Garrison | Expanded RIF knowledge: Command Fork 7479 | -7/Garrison | Triggered checkpoint 7604 | -7/Garrison | Triggered checkpoint 7657 | -7/Garrison | Garrison Relay disabled 8037 | -7/Garrison | Discovered new exit (range 9) 8088 | -7/Garrison | Triggered checkpoint 8131 | -7/Garrison | Garrison Relay disabled 8199 | -7/Garrison | Entered Factory 8199 | -6/Factory | Accompanied by 1 ally 8199 | -6/Factory | Evolved 2 slots: Utility x2 8250 | -6/Factory | Spotted B-75 Beast 8279 | -6/Factory | Destroyed B-75 Beast 8299 | -6/Factory | Identified exit to Garrison 8335 | -6/Factory | Repaired Imp. Utility Shielding 8390 | -6/Factory | Repaired Adv. Weight Redist. System? 8431 | -6/Factory | Entered Garrison 8431 | -6/Garrison | Accompanied by 3 allies 8433 | -6/Garrison | Expanded RIF knowledge: Patrol Navigation 8558 | -6/Garrison | Triggered checkpoint 8566 | -6/Garrison | Triggered checkpoint 8588 | -6/Garrison | Triggered checkpoint 8615 | -6/Garrison | Triggered checkpoint 8769 | -6/Garrison | Discovered new exit (range 11) 8802 | -6/Garrison | Triggered checkpoint 8846 | -6/Garrison | Garrison Relay disabled 8928 | -6/Garrison | Triggered checkpoint 8957 | -6/Garrison | Garrison Relay disabled 9130 | -6/Garrison | Entered Factory 9130 | -6/Factory | Accompanied by 1 ally 9138 | -6/Factory | Identified exit to Garrison 9278 | -6/Factory | Found Launcher Loader 9372 | -6/Factory | Entered Garrison 9372 | -6/Garrison | Accompanied by 4 allies 9510 | -6/Garrison | Build established: Hacker-Sprinter 9568 | -6/Garrison | Garrison Relay disabled 9582 | -6/Garrison | Triggered checkpoint 9660 | -6/Garrison | Spotted B-75 Beast 9665 | -6/Garrison | Triggered checkpoint 9681 | -6/Garrison | Triggered checkpoint 9702 | -6/Garrison | Allies destroyed B-75 Beast 9772 | -6/Garrison | Triggered checkpoint 9808 | -6/Garrison | Triggered checkpoint 9877 | -6/Garrison | Build established: Bothacker-Sprinter 9892 | -6/Garrison | Discovered new exit (range 13) 9942 | -6/Garrison | Triggered checkpoint 9979 | -6/Garrison | Garrison Relay disabled 10277 | -6/Garrison | Build established: Bothacker-Mutant 10367 | -6/Garrison | Entered Factory 10367 | -5/Factory | Accompanied by 1 ally 10367 | -5/Factory | Evolved 2 slots: Utility x2 10444 | -5/Factory | Repaired Imp. Utility Shielding 10595 | -5/Factory | Build established: Bothacker-Sprinter 11135 | -5/Factory | Discovered new exit (range 6) 11210 | -5/Factory | Entered Extension 11210 | -5/Extension | Accompanied by 1 ally 11220 | -5/Extension | Rescued a captive Derelict 11221 | -5/Extension | Rescued a captive Derelict 11225 | -5/Extension | Rescued a captive Derelict 11235 | -5/Extension | Rescued a captive Derelict 11236 | -5/Extension | Rescued a captive Derelict 11236 | -5/Extension | Rescued a captive Derelict 11237 | -5/Extension | Rescued a captive Derelict 11239 | -5/Extension | Rescued a captive Derelict 11239 | -5/Extension | Rescued a captive Derelict 11241 | -5/Extension | Rescued a captive Derelict 11243 | -5/Extension | Rescued a captive Derelict 11245 | -5/Extension | Rescued a captive Derelict 11253 | -5/Extension | Rescued a captive Derelict 11257 | -5/Extension | Rescued a captive Derelict 11418 | -5/Extension | Build established: Bothacker-Mutant 12059 | -5/Extension | Spotted B-75 Beast 12088 | -5/Extension | Discovered new exit (range 16) 12089 | -5/Extension | Spotted B-75 Beast 12092 | -5/Extension | Extracted ID and sensor layout for unrecognized location from A7's data core 12096 | -5/Extension | Destroyed B-75 Beast 12126 | -5/Extension | Allies destroyed B-75 Beast 12402 | -5/Extension | Build established: Hacker-Mutant 12650 | -5/Extension | Discovered new exit (range 10) 12651 | -5/Extension | Discovered new exit (range 6) 12728 | -5/Extension | Disrupted transfer network 12728 | -5/Extension | Entered Cetus 12728 | -5/Cetus | Accompanied by 1 ally 12747 | -5/Cetus | Spotted Cetus Guard 12748 | -5/Cetus | Spotted Cetus Guard 12748 | -5/Cetus | Spotted Cetus Guard 12756 | -5/Cetus | Spotted Cetus Guard 12762 | -5/Cetus | Allies destroyed Cetus Guard 12790 | -5/Cetus | Allies destroyed Cetus Guard 12804 | -5/Cetus | Lost 6 parts (1n4u1w) 12896 | -5/Cetus | Discovered new exit (range 18) 12987 | -5/Cetus | Spotted Cetus Guard 12988 | -5/Cetus | Spotted Cetus Guard 13004 | -5/Cetus | Spotted Cetus Guard 13013 | -5/Cetus | Allies destroyed Cetus Guard 13030 | -5/Cetus | Destroyed Cetus Guard 13058 | -5/Cetus | Destroyed Cetus Guard 13083 | -5/Cetus | Lost 3 parts (1p2u) 13161 | -5/Cetus | Build established: Scavenger-Mutant 13243 | -5/Cetus | Discovered new exit (range 17) 13256 | -5/Cetus | Met Revision 17 13334 | -5/Cetus | Entered Archives 13334 | -5/Archives | Accompanied by 1 ally 13512 | -5/Archives | Discovered new exit (range 15) 13535 | -5/Archives | Discovered new exit (range 17) 13599 | -5/Archives | Discovered new exit (range 14) 14286 | -5/Archives | Entered Hub_04(d) 14286 | -5/Hub_04(d) | Accompanied by 1 ally 14301 | -5/Hub_04(d) | Discovered new exit (range 16) 14338 | -5/Hub_04(d) | Identified exit to Factory 14505 | -5/Hub_04(d) | Build established: Wizard-Mutant 15041 | -5/Hub_04(d) | Network Hub disabled 15067 | -5/Hub_04(d) | Network Hub disabled 15101 | -5/Hub_04(d) | Spotted Lightning 15119 | -5/Hub_04(d) | Spotted Lightning 15119 | -5/Hub_04(d) | Entered Factory 15119 | -4/Factory | Accompanied by 2 allies 15119 | -4/Factory | Evolved 2 slots: Utility x2 15171 | -4/Factory | Fabricated Imp. VTOL Module? 15196 | -4/Factory | Repaired Fusion Compressor 15210 | -4/Factory | Fabricated Imp. VTOL Module? 15350 | -4/Factory | Discovered new exit (range 8) 15462 | -4/Factory | Build established: Wizard-Sprinter 15464 | -4/Factory | Entered Upper Caves 15464 | -4/Upper Caves | Accompanied by 3 allies 15691 | -4/Upper Caves | A Commander dispatched an escort 15716 | -4/Upper Caves | Destroyed LQ-YY7(g) 15725 | -4/Upper Caves | Learned Factory emergency access door positions 15725 | -4/Upper Caves | Learned Armory stockpile data 15725 | -4/Upper Caves | Learned Factory terminal intel 16070 | -4/Upper Caves | Learned location of Quarantine (-3) 16070 | -4/Upper Caves | Discovered new exit (range 9) 16227 | -4/Upper Caves | Entered another Upper Caves area 16227 | -4/Upper Caves | Accompanied by 3 allies 16228 | -4/Upper Caves | Commander's escort returned to base 16228 | -4/Upper Caves | Commander's escort returned to base 16262 | -4/Upper Caves | Discovered new exit (range 10) 16297 | -4/Upper Caves | Learned Research security intel 16526 | -4/Upper Caves | Learned location of 1 exit from Research 16786 | -4/Upper Caves | Discovered new exit (range 9) 16948 | -4/Upper Caves | Entered Zhirov 16948 | -4/Zhirov | Accompanied by 1 ally 16948 | -4/Zhirov | Discovered new exit (range 3) 16954 | -4/Zhirov | Met Zhirov 16962 | -4/Zhirov | Found Alien Artifact 16962 | -4/Zhirov | Identified Integrated Dissipator 16962 | -4/Zhirov | Installed Integrated Dissipator, increased core heat dissipation (+20) 17073 | -4/Zhirov | Found Alien Artifact 17084 | -4/Zhirov | Learned location of Testing (-2) 17084 | -4/Zhirov | Learned location of Command (-1) 17088 | -4/Zhirov | Zhirov requested help retrieving the SGEMP Prototype 17187 | -4/Zhirov | Entered Proximity Caves 17187 | -3/Proximity Caves | Accompanied by 1 ally 17253 | -3/Proximity Caves | Build established: Wizard-Mutant 17399 | -3/Proximity Caves | Spotted B-86 Titan 17436 | -3/Proximity Caves | Allies destroyed B-86 Titan 17871 | -3/Proximity Caves | Discovered new exit (range 12) 17953 | -3/Proximity Caves | Entered Research 17953 | -3/Research | Accompanied by 1 ally 17953 | -3/Research | Evolved 2 slots: Utility x2 17954 | -3/Research | Identified exit to Armory 18036 | -3/Research | Garrison activated, responded to threat 18081 | -3/Research | Identified exit to Garrison 18156 | -3/Research | Entered Garrison 18156 | -3/Garrison | Accompanied by 3 allies 18239 | -3/Garrison | Triggered checkpoint 18239 | -3/Garrison | Triggered checkpoint 18371 | -3/Garrison | Triggered checkpoint 18393 | -3/Garrison | Triggered checkpoint 18541 | -3/Garrison | Discovered new exit (range 17) 18552 | -3/Garrison | Expanded RIF knowledge: Zone Cloak 18605 | -3/Garrison | Discovered new exit (range 12) 18708 | -3/Garrison | Triggered checkpoint 18832 | -3/Garrison | Garrison Relay disabled 19146 | -3/Garrison | Triggered checkpoint 19222 | -3/Garrison | Discovered new exit (range 17) 19324 | -3/Garrison | Triggered checkpoint 19365 | -3/Garrison | Garrison Relay disabled 19553 | -3/Garrison | Entered Research 19553 | -3/Research | Accompanied by 2 allies 19803 | -3/Research | First assault squad dispatched 20061 | -3/Research | Identified Transdimensional Reconstructor 20148 | -3/Research | Build established: Hacker-Mutant 20232 | -3/Research | Identified exit to Quarantine 20617 | -3/Research | Entered Quarantine 20617 | -3/Quarantine | Accompanied by 1 ally 20691 | -3/Quarantine | Found Alien Slashing Weapon 20691 | -3/Quarantine | Identified Sigix Broadsword 20769 | -3/Quarantine | Repaired Exp. Propulsion Shielding 20803 | -3/Quarantine | Garrison activated, responded to threat 20847 | -3/Quarantine | Build established: Wizard-Sprinter 21276 | -3/Quarantine | Found Quantum Capacitor 21331 | -3/Quarantine | Build established: Wizard-Mutant 21625 | -3/Quarantine | Found Launcher Loader 21634 | -3/Quarantine | P-80 Master assimilated allied B-74 Champion 21639 | -3/Quarantine | P-80 Master assimilated allied G-67 Veteran 21731 | -3/Quarantine | Discovered new exit (range 12) 21738 | -3/Quarantine | Spotted Alpha 7 21753 | -3/Quarantine | Destroyed Alpha 7 21780 | -3/Quarantine | Found Alien Launcher 21929 | -3/Quarantine | Found Alien Artifact 22019 | -3/Quarantine | Found Alien Artifact 22019 | -3/Quarantine | Identified Terrabomb 22019 | -3/Quarantine | Used Terrabomb 22244 | -3/Quarantine | Found Terrabomb 22254 | -3/Quarantine | Used Terrabomb 22265 | -3/Quarantine | Found Alien Artifact 22267 | -3/Quarantine | Found Alien Artifact 22270 | -3/Quarantine | Found Alien Artifact 22278 | -3/Quarantine | Found Alien Artifact 22286 | -3/Quarantine | Found Alien Artifact 22393 | -3/Quarantine | Entered Research 22393 | -2/Research | Accompanied by 2 allies 22393 | -2/Research | Evolved 2 slots: Utility x1, Weapon x1 22395 | -2/Research | Identified Matter Drive 22764 | -2/Research | Fabricated Tactical Coordination Suite (x1) 22817 | -2/Research | Fabricated Tactical Coordination Suite? 23024 | -2/Research | Identified Hpw. Transdimensional Reconstructor 23024 | -2/Research | Identified Core Reset Matrix 23143 | -2/Research | First assault squad dispatched 23152 | -2/Research | Identified exit to Access 23186 | -2/Research | Warped through subspace 23197 | -2/Research | Warped through subspace 23230 | -2/Research | Identified exit to Garrison 23239 | -2/Research | Core integrity fell below 50% 23243 | -2/Research | Used Core Reset Matrix 23247 | -2/Research | Emitted hypermatrix ping 23252 | -2/Research | Assembled emerged from beneath the floor 23252 | -2/Research | Core integrity fell below 20% 23258 | -2/Research | Core destroyed Last Messages --------------- 23247_ Emitted hypermatrix ping. 23249_ Critical hit (Destroy). 23249_ Sigix Broadsword destroyed. 23251_ Slug penetrates Garrison Access. 23252_ Assembled emerge from beneath the floor. 23252_ Slug penetrates S-43 Plague. 23252_ Slug penetrates Wall. 23252_ as-76732 sneak attacks. 23252_ S-43 Plague destroyed. 23252_ Acquired 34 matter. 23253_ Slug penetrates S-43 Plague. 23254_ S-43 Plague destroyed. 23255_ Slug penetrates S-43 Plague. 23255_ S-43 Plague destroyed. 23255_ Slug penetrates as-32555. 23257_ Slug penetrates as-10179. 23257_ Slug penetrates S-43 Plague. 23257_ S-43 Plague destroyed. 23257_ Slug penetrates H-88 Terminator. 23258_ >> DECODED: Security location. Map ----- +----------------------------------------------------+ | ?????????????????????????????????????????????????? | | ?????????????????????????????????????????????????? | | ?????????????????????????????????????????????????? | | ?????????????????????????????????????????????????? | | ?????????????????????????????????????????????????? | | ?????????????????????????????????????????????????? | | ?????????????????????????????????????????????????? | | ?????????????????????????????????????????????????? | | ?????????????????????????????????????????????????? | | ?????????????????????????????????????????????????? | | ?????????????????????????????????????????????????? | | ?????????????????????????????????????????????????? | | ?????????????????????????????????????????????????? | | ?????????????????????????????????????????????????? | | ?????????????????????????????????????????????????? | | ?????????????????????????????????????????????????? | | ?????????????????????????????????????????????????? | | ?????????????????????????????????????????????????? | | ?????????????????????????????????????????????????? | | ?????????????????????????????????????????????????? | | ?????????????????????????????????????????????????? | | ?????????????????????????????????????????????????? | | ?????????????????????????????????????????????????? | | ?????????????????????###########?????????????????? | | ?????????????????????# %a #?????????????????? | | ?????????????????????# @a%a #?????????????????? | | ?????????????????????# a%a%a #?????????????????? | | ?????????????????????# "a" #????????????A????? | | ?????????????????????# ">" #?????????????????? | | ?????????????????????# ""G""h!#?????????????????? | | ?????????????????????# #?????????????????? | | ?????????????????????# #?????????????????? | | ?????????????????????#+#;####;;;"????????????????? | | ??????????????????????? ???? ???????????????? | | ??????????????????????? ???? ?????H????????? | | ?????????????????????? ????? ?????????????? | | ?????????????????????? ????? ????????????? | | ????????????????????? ?????? ????????????? | | ????????????????????? ?????? ###???????????? | | ???????????????????? ???????? ???????????????? | | ???????????????????? ??????????????????????????? | | ??????????????????? ??????????????????????????? | | ???????????????????? ???????????????????????????? | | ?????????????????????????????????????????????????? | | ?????????????????????????????????????????????????? | | ?????????????????????????????????????????????????? | | ?????????????????????????????????????????????????? | | ?????????????????????????????????????????????????? | | ?????????????????????????????????????????????????? | | ?????????????????????????????????????????????????? | +----------------------------------------------------+ Best States ------------- Heat Dissipation 78 Coolant Potential 50 Energy Generation 25 Energy Capacity 570 Matter Stores 300 Matter Capacity 300 Sight Range 20 Robot Scan Range 16 Terrain Scan Range 16 Terrain Scan Density 60 Jamming Range 16 Power Amplification 30 Additional Mass Support 9 Armor Coverage 600 Resistance: KI 30 Core Shielding 30 Propulsion Shielding 90 Utility Shielding 66 Weapon Shielding 66 Evasion (%) 64 Targeting Accuracy 6 Melee Accuracy 8 Launcher Accuracy 40 Target Analysis 8 Recoil Reduction 2 Salvage Targeting 4 Offensive Hacking 64 Defensive Hacking 24 Relay Coupler Types 135 Relay Coupler Value 5 Item Schematics ----------------- None Robot Schematics ------------------ None Fabricated ------------ Imp. VTOL Module | x1 | -4/Factory Imp. VTOL Module | x1 | -4/Factory Tactical Coordination Suite | x1 | -2/Research Tactical Coordination Suite | x1 | -2/Research Alien Tech Used ----------------- Integrated Dissipator Sigix Broadsword Terrabomb Matter Drive High-powered Transdimensional Reconstructor Transdimensional Reconstructor Core Reset Matrix Achievements -------------- None Challenges ------------ None Player 2 | -11 -10 -10 -9 -9 -9 -8 -7 -7 -6 -6 -6 -6 -5 -5 -5 -5 -5 -4 -4 -4 -4 -3 -3 -3 -3 -3 -2 ---------- Run | Scr Mat Min Mat Sto Gar Mat Fac Gar Fac Gar Fac Gar Fac Ext Cet Arc Hub Fac Upp Upp Zhi Pro Res Gar Res Qua Res Slots Evolved 16 | . . 2 . . 2 2 . 2 . . . 2 . . . . 2 . . . . 2 . . . 2 . Power 2 | . . . . . . 1 . . . . . . . . . . . . . . . 1 . . . . . Propulsion 4 | . . 2 . . . . . 1 . . . . . . . . . . . . . . . . . 1 . Utility 7 | . . . . . 1 1 . 1 . . . 1 . . . . 1 . . . . 1 . . . 1 . Weapon 3 | . . . . . 1 . . . . . . 1 . . . . 1 . . . . . . . . . . Parts Attached 280 | . 11 1 4 29 . 16 6 3 6 6 5 21 14 14 8 11 4 4 3 1 2 3 4 17 29 35 23 Parts Lost 94 | . 1 . . . . 1 . . 2 4 1 9 3 1 3 2 2 . . . . 3 3 14 19 2 24 Damage Taken 19880 | . 146 . . 655 43 482 166 318 771 759 55 1053 540 91 1125 166 826 256 33 140 . 833 1006 1685 2685 1058 4988 Core 2066 | . 10 . . 120 . 27 . 47 93 38 . 103 12 . 9 13 31 25 . . . 39 37 80 187 137 1058 Player 2/Cogmind (%) 62 | . 24 . . 90 . 14 . 35 89 40 . 47 66 . 4 59 31 100 . . . 100 100 61 79 64 80 Absorbed by Shields 5363 | . . . . . . . 63 117 289 285 20 238 282 61 373 105 621 216 31 133 . 278 264 895 1092 . . Damage Inflicted 37476 | . 514 . . 1157 111 2682 891 1382 812 1326 141 1561 1332 686 2672 681 2464 644 112 262 . 2018 1585 3517 4073 2133 4720 Player 2/Cogmind (%) 60 | . 62 . . 56 69 49 64 48 75 42 74 68 67 82 71 46 81 100 21 13 . 57 100 55 73 45 76 Combat Hostiles Destroyed 229 | . 8 . . 17 1 21 9 8 2 11 . 9 5 7 13 3 13 2 3 5 . 9 4 16 23 12 28 Player 2/Cogmind (%) 63 | . 57 . . 65 33 50 69 40 66 52 . 52 38 87 65 75 81 100 100 27 . 56 100 57 82 80 96 Game ------ Seed OpticalLayeredAutohacker Manual? 0 Play Time 03:26:42 Cumulative 2107.6 hours Start 2021.08.11 @ 05:04:24 End 2021.08.11 @ 08:44:19 Sessions 2 Manual Loads 0 Difficulty Rogue Special Mode AFD2020/Player2 Game No. 2642 Rogue 2634 Adventurer 0 Explorer 8 Win Type - Total 238 Types 45/31/89/3/3/5/59/2/1 Lore% 99 Gallery% 99 Achievement% 100 Wizard Run 0 Options --------- ASCII 0 Keyboard 1 Movement Vi Keybinds 1 Fullscreen 1 Font 18/SmallcapsGlow Map View 76x50 Tactical HUD 1 Map Filters NONE Filters NONE Steam 1 RUN: 1e013918-6e4a-443b-b99a-eba74a13d885